[Event "Titled Tuesday Blitz February 22 Early 2022"]
[White "Cherniaiev, Tykhon"]
[Black "Kadam, Om Manish"]
[WhiteFideId "14182360"]
[BlackFideId "45076294"]
[WhiteElo "2289"]
[BlackElo "1729"]
[Result "1/2-1/2"]
[Round "11"]
[TimeControl "180+1"]
[Date "2022.02.22"]
[WhiteClock "0:00:09"]
[BlackClock "0:00:09"]

1. Nf3 {[%clk 0:03:00]}  Nf6 {[%clk 0:02:59]} 2. c4 {[%clk 0:02:58]}  g6 {[%clk 0:03:00]} 3. b3 {[%clk 0:02:59]}  Bg7 {[%clk 0:03:00]} 4. Bb2 {[%clk 0:03:00]}  O-O {[%clk 0:03:00]} 5. g3 {[%clk 0:03:00]}  d6 {[%clk 0:02:59]} 6. d4 {[%clk 0:03:00]}  Nbd7 {[%clk 0:02:59]} 7. Bg2 {[%clk 0:03:00]}  c6 {[%clk 0:02:59]} 8. O-O {[%clk 0:03:01]}  Qc7 {[%clk 0:02:59]} 9. Nc3 {[%clk 0:03:00]}  e5 {[%clk 0:02:59]} 10. Rc1 {[%clk 0:03:00]}  Re8 {[%clk 0:02:55]} 11. e3 {[%clk 0:03:00]}  Nf8 {[%clk 0:02:40]} 12. Ba3 {[%clk 0:02:57]}  Rd8 {[%clk 0:02:37]} 13. h3 {[%clk 0:02:55]}  Qa5 {[%clk 0:02:33]} 14. Bb2 {[%clk 0:02:54]}  Ne6 {[%clk 0:02:28]} 15. d5 {[%clk 0:02:52]}  cxd5 {[%clk 0:02:27]} 16. cxd5 {[%clk 0:02:52]}  Nc5 {[%clk 0:02:10]} 17. a3 {[%clk 0:02:51]}  Qa6 {[%clk 0:02:10]} 18. Ne1 {[%clk 0:01:45]}  Bd7 {[%clk 0:01:59]} 19. b4 {[%clk 0:01:41]}  Na4 {[%clk 0:01:52]} 20. Qb3 {[%clk 0:01:37]}  Nxc3 {[%clk 0:01:39]} 21. Bxc3 {[%clk 0:00:54]}  Ba4 {[%clk 0:01:33]} 22. Qb2 {[%clk 0:00:45]}  Bb5 {[%clk 0:01:32]} 23. Nc2 {[%clk 0:00:31]}  Bxf1 {[%clk 0:01:28]} 24. Bxf1 {[%clk 0:00:32]}  Qb6 {[%clk 0:01:29]} 25. Bg2 {[%clk 0:00:29]}  Rac8 {[%clk 0:01:28]} 26. e4 {[%clk 0:00:28]}  Bh6 {[%clk 0:01:25]} 27. Rd1 {[%clk 0:00:25]}  Rc4 {[%clk 0:01:23]} 28. Ne1 {[%clk 0:00:09]}  Rdc8 {[%clk 0:01:22]} 29. Bd2 {[%clk 0:00:08]}  Qd4 {[%clk 0:01:18]} 30. Qa2 {[%clk 0:00:04]}  Bxd2 {[%clk 0:01:15]} 31. Rxd2 {[%clk 0:00:05]}  Qc3 {[%clk 0:01:14]} 32. Kf1 {[%clk 0:00:04]}  Rd4 {[%clk 0:01:14]} 33. Rc2 {[%clk 0:00:04]}  Qxc2 {[%clk 0:00:42]} 34. Nxc2 {[%clk 0:00:05]}  Rd2 {[%clk 0:00:42]} 35. Qb3 {[%clk 0:00:05]}  Rcxc2 {[%clk 0:00:42]} 36. Qe3 {[%clk 0:00:05]}  b6 {[%clk 0:00:39]} 37. Kg1 {[%clk 0:00:04]}  Nh5 {[%clk 0:00:34]} 38. Bf1 {[%clk 0:00:02]}  Kg7 {[%clk 0:00:21]} 39. Kg2 {[%clk 0:00:03]}  h6 {[%clk 0:00:20]} 40. Bd3 {[%clk 0:00:02]}  Rb2 {[%clk 0:00:20]} 41. Bb5 {[%clk 0:00:02]}  f5 {[%clk 0:00:20]} 42. exf5 {[%clk 0:00:02]}  gxf5 {[%clk 0:00:21]} 43. Bc4 {[%clk 0:00:01]}  Kg6 {[%clk 0:00:20]} 44. Qf3 {[%clk 0:00:01]}  Rxf2+ {[%clk 0:00:19]} 45. Qxf2 {[%clk 0:00:02]}  Rxf2+ {[%clk 0:00:20]} 46. Kxf2 {[%clk 0:00:03]}  Kf6 {[%clk 0:00:21]} 47. Be2 {[%clk 0:00:03]}  Ng7 {[%clk 0:00:21]} 48. Ke3 {[%clk 0:00:04]}  Ne8 {[%clk 0:00:18]} 49. g4 {[%clk 0:00:03]}  fxg4 {[%clk 0:00:18]} 50. hxg4 {[%clk 0:00:04]}  Kg5 {[%clk 0:00:18]} 51. Kd3 {[%clk 0:00:02]}  Nf6 {[%clk 0:00:19]} 52. Kc4 {[%clk 0:00:03]}  a6 {[%clk 0:00:19]} 53. Kb3 {[%clk 0:00:02]}  b5 {[%clk 0:00:19]} 54. a4 {[%clk 0:00:02]}  bxa4+ {[%clk 0:00:19]} 55. Kxa4 {[%clk 0:00:03]}  Nxd5 {[%clk 0:00:20]} 56. Ka5 {[%clk 0:00:03]}  e4 {[%clk 0:00:18]} 57. Bxa6 {[%clk 0:00:03]}  Kxg4 {[%clk 0:00:18]} 58. b5 {[%clk 0:00:03]}  Kf3 {[%clk 0:00:17]} 59. Bb7 {[%clk 0:00:03]}  Nc7 {[%clk 0:00:12]} 60. b6 {[%clk 0:00:03]}  Ne6 {[%clk 0:00:12]} 61. Bd5 {[%clk 0:00:02]}  Nd8 {[%clk 0:00:13]} 62. Ka6 {[%clk 0:00:02]}  h5 {[%clk 0:00:12]} 63. Ka7 {[%clk 0:00:02]}  h4 {[%clk 0:00:11]} 64. Kb8 {[%clk 0:00:02]}  h3 {[%clk 0:00:12]} 65. Kc7 {[%clk 0:00:03]}  h2 {[%clk 0:00:12]} 66. Kxd8 {[%clk 0:00:03]}  h1=Q {[%clk 0:00:12]} 67. b7 {[%clk 0:00:04]}  Qh8+ {[%clk 0:00:13]} 68. Kc7 {[%clk 0:00:04]}  Qg7+ {[%clk 0:00:13]} 69. Kb6 {[%clk 0:00:05]}  Qb2+ {[%clk 0:00:13]} 70. Kc7 {[%clk 0:00:05]}  Qc3+ {[%clk 0:00:13]} 71. Kxd6 {[%clk 0:00:06]}  Qb4+ {[%clk 0:00:13]} 72. Kc7 {[%clk 0:00:06]}  Qc5+ {[%clk 0:00:13]} 73. Bc6 {[%clk 0:00:07]}  Qe7+ {[%clk 0:00:13]} 74. Kc8 {[%clk 0:00:07]}  Qf8+ {[%clk 0:00:10]} 75. Kc7 {[%clk 0:00:08]}  Qf4+ {[%clk 0:00:08]} 76. Kc8 {[%clk 0:00:08]}  Qd6 {[%clk 0:00:08]} 77. Bxe4+ {[%clk 0:00:08]}  Kxe4 {[%clk 0:00:08]} 78. b8=Q {[%clk 0:00:08]}  Qc6+ {[%clk 0:00:08]} 79. Qc7 {[%clk 0:00:09]}  Qa8+ {[%clk 0:00:09]} 80. Qb8 {[%clk 0:00:09]}  Qxb8+ {[%clk 0:00:09]} 81. Kxb8 {[%clk 0:00:09]} 1/2-1/2


[Site "https://www.chess.com"]

[Event "Titled Tuesday Blitz February 22 Early 2022"]
[White "Chincholimath, Halsagar"]
[Black "Zavivaeva, Emilia"]
[WhiteFideId "5022487"]
[BlackFideId "34127531"]
[WhiteElo "1737"]
[BlackElo "1685"]
[Result "0-1"]
[Round "11"]
[TimeControl "180+1"]
[Date "2022.02.22"]
[WhiteClock "0:00:12"]
[BlackClock "0:00:21"]

1. e4 {[%clk 0:03:00]}  a6 {[%clk 0:02:44]} 2. d4 {[%clk 0:02:59]}  b5 {[%clk 0:02:44]} 3. f4 {[%clk 0:02:56]}  Bb7 {[%clk 0:02:44]} 4. Bd3 {[%clk 0:02:48]}  g6 {[%clk 0:02:43]} 5. Nf3 {[%clk 0:02:48]}  Bg7 {[%clk 0:02:43]} 6. c3 {[%clk 0:02:45]}  e6 {[%clk 0:02:42]} 7. O-O {[%clk 0:02:44]}  Ne7 {[%clk 0:02:41]} 8. Qe1 {[%clk 0:02:41]}  O-O {[%clk 0:02:40]} 9. Qh4 {[%clk 0:02:34]}  d6 {[%clk 0:02:38]} 10. f5 {[%clk 0:02:26]}  exf5 {[%clk 0:02:36]} 11. exf5 {[%clk 0:02:26]}  Nxf5 {[%clk 0:02:29]} 12. Qxd8 {[%clk 0:02:23]}  Rxd8 {[%clk 0:02:28]} 13. Bxf5 {[%clk 0:02:23]}  gxf5 {[%clk 0:02:27]} 14. Bg5 {[%clk 0:02:15]}  Re8 {[%clk 0:02:26]} 15. Nbd2 {[%clk 0:02:12]}  Nd7 {[%clk 0:02:22]} 16. Rae1 {[%clk 0:02:11]}  Be4 {[%clk 0:02:20]} 17. Rf2 {[%clk 0:01:43]}  d5 {[%clk 0:02:17]} 18. h4 {[%clk 0:01:32]}  c5 {[%clk 0:02:14]} 19. Bf4 {[%clk 0:01:18]}  Bxf3 {[%clk 0:01:48]} 20. Rxe8+ {[%clk 0:01:10]}  Rxe8 {[%clk 0:01:49]} 21. Nxf3 {[%clk 0:01:09]}  Re4 {[%clk 0:01:44]} 22. Bd6 {[%clk 0:01:04]}  cxd4 {[%clk 0:01:42]} 23. Rd2 {[%clk 0:01:01]}  dxc3 {[%clk 0:01:40]} 24. bxc3 {[%clk 0:01:02]}  Nb6 {[%clk 0:01:27]} 25. Bc5 {[%clk 0:00:56]}  Bxc3 {[%clk 0:01:18]} 26. Rd3 {[%clk 0:00:53]}  Na4 {[%clk 0:01:15]} 27. Ba7 {[%clk 0:00:44]}  d4 {[%clk 0:00:59]} 28. Ng5 {[%clk 0:00:42]}  Re2 {[%clk 0:00:53]} 29. Rg3 {[%clk 0:00:40]}  f6 {[%clk 0:00:42]} 30. Ne4+ {[%clk 0:00:32]}  Kf7 {[%clk 0:00:41]} 31. Nd6+ {[%clk 0:00:31]}  Ke6 {[%clk 0:00:37]} 32. Ne8 {[%clk 0:00:30]}  Rxa2 {[%clk 0:00:32]} 33. Rg7 {[%clk 0:00:23]}  d3 {[%clk 0:00:29]} 34. Bb8 {[%clk 0:00:20]}  Kd5 {[%clk 0:00:19]} 35. Nc7+ {[%clk 0:00:19]}  Kc4 {[%clk 0:00:18]} 36. Rd7 {[%clk 0:00:18]}  d2 {[%clk 0:00:17]} 37. Nd5 {[%clk 0:00:12]}  d1=Q+ {[%clk 0:00:16]} 38. Kh2 {[%clk 0:00:12]}  Qg4 {[%clk 0:00:15]} 39. Ne3+ {[%clk 0:00:11]}  Kb3 {[%clk 0:00:15]} 40. Nxg4 {[%clk 0:00:12]}  fxg4 {[%clk 0:00:15]} 41. Rd3 {[%clk 0:00:12]}  Nc5 {[%clk 0:00:15]} 42. Rg3 {[%clk 0:00:11]}  b4 {[%clk 0:00:14]} 43. Rxg4 {[%clk 0:00:11]}  a5 {[%clk 0:00:14]} 44. Bd6 {[%clk 0:00:12]}  Nd3 {[%clk 0:00:14]} 45. Rg3 {[%clk 0:00:12]}  Ne5 {[%clk 0:00:13]} 46. Re3 {[%clk 0:00:12]}  a4 {[%clk 0:00:14]} 47. h5 {[%clk 0:00:13]}  Ng4+ {[%clk 0:00:13]} 48. Kg3 {[%clk 0:00:11]}  Nxe3 {[%clk 0:00:14]} 49. Kf3 {[%clk 0:00:11]}  Nxg2 {[%clk 0:00:15]} 50. h6 {[%clk 0:00:11]}  Ne1+ {[%clk 0:00:16]} 51. Ke3 {[%clk 0:00:10]}  a3 {[%clk 0:00:17]} 52. Be5 {[%clk 0:00:09]}  Rd2 {[%clk 0:00:18]} 53. Ke4 {[%clk 0:00:09]}  a2 {[%clk 0:00:19]} 54. Bxc3 {[%clk 0:00:08]}  bxc3 {[%clk 0:00:19]} 55. Ke3 {[%clk 0:00:08]}  a1=Q {[%clk 0:00:20]} 56. Kf4 {[%clk 0:00:09]}  Qa4+ {[%clk 0:00:21]} 57. Kf5 {[%clk 0:00:10]}  Qb5+ {[%clk 0:00:20]} 58. Ke6 {[%clk 0:00:10]}  Qc4+ {[%clk 0:00:21]} 59. Ke7 {[%clk 0:00:10]}  Rd5 {[%clk 0:00:21]} 60. Kf8 {[%clk 0:00:11]}  Qc6 {[%clk 0:00:21]} 61. Kg7 {[%clk 0:00:12]}  Rd7+ {[%clk 0:00:21]} 0-1


[Site "https://www.chess.com"]

[Event "Titled Tuesday Blitz February 22 Early 2022"]
[White "Cramling Bellon, Anna"]
[Black "Faizrakhmanov, Ramil"]
[WhiteFideId "32009232"]
[BlackFideId "24103209"]
[WhiteElo "1905"]
[BlackElo "2502"]
[Result "1-0"]
[Round "11"]
[TimeControl "180+1"]
[Date "2022.02.22"]
[WhiteClock "0:00:16"]
[BlackClock "0:00:31"]

1. d4 {[%clk 0:03:00]}  Nf6 {[%clk 0:02:58]} 2. c4 {[%clk 0:03:00]}  g6 {[%clk 0:02:59]} 3. Nc3 {[%clk 0:02:58]}  Bg7 {[%clk 0:02:59]} 4. e4 {[%clk 0:02:57]}  d6 {[%clk 0:02:59]} 5. h3 {[%clk 0:02:57]}  O-O {[%clk 0:02:59]} 6. Bg5 {[%clk 0:02:57]}  Qe8 {[%clk 0:02:55]} 7. Nf3 {[%clk 0:02:54]}  e5 {[%clk 0:02:54]} 8. d5 {[%clk 0:02:48]}  Nh5 {[%clk 0:02:52]} 9. g3 {[%clk 0:02:39]}  h6 {[%clk 0:02:48]} 10. Be3 {[%clk 0:02:35]}  f5 {[%clk 0:02:48]} 11. exf5 {[%clk 0:02:20]}  gxf5 {[%clk 0:02:49]} 12. Be2 {[%clk 0:01:49]}  f4 {[%clk 0:02:47]} 13. gxf4 {[%clk 0:01:46]}  Nxf4 {[%clk 0:02:47]} 14. Rg1 {[%clk 0:01:38]}  Kh8 {[%clk 0:02:41]} 15. Qd2 {[%clk 0:01:34]}  Nxe2 {[%clk 0:02:35]} 16. Qxe2 {[%clk 0:01:30]}  Qh5 {[%clk 0:02:32]} 17. Rg3 {[%clk 0:01:07]}  Bxh3 {[%clk 0:02:29]} 18. Ng5 {[%clk 0:00:46]}  Qxe2+ {[%clk 0:02:24]} 19. Kxe2 {[%clk 0:00:43]}  Bf5 {[%clk 0:02:21]} 20. Rh1 {[%clk 0:00:40]}  Na6 {[%clk 0:02:06]} 21. Ne6 {[%clk 0:00:32]}  Bxe6 {[%clk 0:01:59]} 22. Bxh6 {[%clk 0:00:28]}  Bf5 {[%clk 0:00:43]} 23. Bxg7+ {[%clk 0:00:25]}  Kg8 {[%clk 0:00:44]} 24. Bxf8+ {[%clk 0:00:23]}  Kf7 {[%clk 0:00:38]} 25. Rf3 {[%clk 0:00:20]}  Kxf8 {[%clk 0:00:31]} 26. Rh8+ {[%clk 0:00:16]} 1-0


[Site "https://www.chess.com"]

[Event "Titled Tuesday Blitz February 22 Early 2022"]
[White "De Verdier, Michael"]
[Black "Mikhailovsky, Vladimir"]
[WhiteFideId "1710516"]
[BlackFideId "34105414"]
[WhiteElo "2301"]
[BlackElo "2371"]
[Result "0-1"]
[Round "11"]
[TimeControl "180+1"]
[Date "2022.02.22"]
[WhiteClock "0:00:24"]
[BlackClock "0:01:05"]

1. Nf3 {[%clk 0:03:00]}  d5 {[%clk 0:02:59]} 2. e3 {[%clk 0:02:59]}  Nf6 {[%clk 0:02:57]} 3. c4 {[%clk 0:02:59]}  e6 {[%clk 0:02:57]} 4. b3 {[%clk 0:02:59]}  b6 {[%clk 0:02:57]} 5. cxd5 {[%clk 0:02:58]}  exd5 {[%clk 0:02:57]} 6. Bb2 {[%clk 0:02:58]}  Bb7 {[%clk 0:02:58]} 7. Nc3 {[%clk 0:02:55]}  Nbd7 {[%clk 0:02:57]} 8. d4 {[%clk 0:02:55]}  Bd6 {[%clk 0:02:57]} 9. Bd3 {[%clk 0:02:55]}  Qe7 {[%clk 0:02:56]} 10. Rc1 {[%clk 0:02:53]}  a6 {[%clk 0:02:57]} 11. O-O {[%clk 0:02:53]}  O-O {[%clk 0:02:57]} 12. Ne2 {[%clk 0:02:50]}  Ne4 {[%clk 0:02:56]} 13. Ng3 {[%clk 0:02:50]}  f5 {[%clk 0:02:50]} 14. Rc2 {[%clk 0:02:38]}  Rf6 {[%clk 0:02:47]} 15. Qe2 {[%clk 0:02:19]}  a5 {[%clk 0:02:16]} 16. Rfc1 {[%clk 0:02:16]}  c6 {[%clk 0:02:06]} 17. Nh4 {[%clk 0:01:48]}  Raf8 {[%clk 0:02:02]} 18. Ba6 {[%clk 0:01:30]}  Ba8 {[%clk 0:02:02]} 19. a4 {[%clk 0:01:23]}  g5 {[%clk 0:01:32]} 20. Nf3 {[%clk 0:01:15]}  Rh6 {[%clk 0:01:26]} 21. Rxc6 {[%clk 0:01:00]}  Bxc6 {[%clk 0:01:25]} 22. Rxc6 {[%clk 0:01:00]}  g4 {[%clk 0:01:24]} 23. Ne5 {[%clk 0:00:55]}  Qh4 {[%clk 0:01:06]} 24. Rxd6 {[%clk 0:00:24]}  Qxh2+ {[%clk 0:01:05]} 25. Kf1 {[%clk 0:00:24]}  Qh1+ {[%clk 0:01:06]} 26. Nxh1 {[%clk 0:00:24]}  Rxh1# {[%clk 0:01:05]} 0-1


[Site "https://www.chess.com"]

[Event "Titled Tuesday Blitz February 22 Early 2022"]
[White "Deac, Bogdan-Daniel"]
[Black "Vovk, Orest"]
[WhiteFideId "1226380"]
[BlackFideId "14113490"]
[WhiteElo "2646"]
[BlackElo "2203"]
[Result "1-0"]
[Round "11"]
[TimeControl "180+1"]
[Date "2022.02.22"]
[WhiteClock "0:00:25"]
[BlackClock "0:00:02"]

1. Nf3 {[%clk 0:03:00]}  h6 {[%clk 0:02:49]} 2. d4 {[%clk 0:02:59]}  g5 {[%clk 0:02:49]} 3. e4 {[%clk 0:02:59]}  Bg7 {[%clk 0:02:50]} 4. c3 {[%clk 0:02:54]}  d6 {[%clk 0:02:47]} 5. Bc4 {[%clk 0:02:51]}  c6 {[%clk 0:02:42]} 6. Nbd2 {[%clk 0:02:44]}  d5 {[%clk 0:02:42]} 7. Bd3 {[%clk 0:02:37]}  g4 {[%clk 0:02:35]} 8. Ne5 {[%clk 0:02:36]}  Bxe5 {[%clk 0:02:30]} 9. dxe5 {[%clk 0:02:36]}  Qc7 {[%clk 0:02:26]} 10. O-O {[%clk 0:02:28]}  Qxe5 {[%clk 0:02:21]} 11. f4 {[%clk 0:02:23]}  gxf3 {[%clk 0:02:12]} 12. Nxf3 {[%clk 0:02:18]}  Qh5 {[%clk 0:02:11]} 13. exd5 {[%clk 0:02:14]}  cxd5 {[%clk 0:02:06]} 14. Be2 {[%clk 0:02:00]}  Nf6 {[%clk 0:01:39]} 15. Bf4 {[%clk 0:01:51]}  Rg8 {[%clk 0:01:19]} 16. Ne5 {[%clk 0:01:15]}  Qh3 {[%clk 0:01:08]} 17. Bf3 {[%clk 0:01:14]}  Be6 {[%clk 0:00:49]} 18. Qa4+ {[%clk 0:00:57]}  Nbd7 {[%clk 0:00:48]} 19. Kh1 {[%clk 0:00:56]}  Qf5 {[%clk 0:00:43]} 20. Rae1 {[%clk 0:00:56]}  b5 {[%clk 0:00:31]} 21. Qd4 {[%clk 0:00:53]}  Nxe5 {[%clk 0:00:22]} 22. Bxe5 {[%clk 0:00:46]}  Qc2 {[%clk 0:00:11]} 23. Bxf6 {[%clk 0:00:42]}  exf6 {[%clk 0:00:10]} 24. Qxd5 {[%clk 0:00:40]}  Ke7 {[%clk 0:00:03]} 25. Qb7+ {[%clk 0:00:35]}  Kd6 {[%clk 0:00:02]} 26. Rd1+ {[%clk 0:00:33]}  Ke5 {[%clk 0:00:02]} 27. Qxb5+ {[%clk 0:00:31]}  Kf4 {[%clk 0:00:02]} 28. Rd4+ {[%clk 0:00:26]}  Ke3 {[%clk 0:00:02]} 29. Re1+ {[%clk 0:00:26]}  Kf2 {[%clk 0:00:02]} 30. Qf1# {[%clk 0:00:25]} 1-0


[Site "https://www.chess.com"]

[Event "Titled Tuesday Blitz February 22 Early 2022"]
[White "Dew, Brian"]
[Black "Sumaneev, Dmitry"]
[WhiteFideId "6000495"]
[BlackFideId "4125312"]
[WhiteElo "2118"]
[BlackElo "2524"]
[Result "0-1"]
[Round "11"]
[TimeControl "180+1"]
[Date "2022.02.22"]
[WhiteClock "0:00:01"]
[BlackClock "0:01:17"]

1. b3 {[%clk 0:03:00]}  e5 {[%clk 0:02:58]} 2. Bb2 {[%clk 0:03:01]}  d6 {[%clk 0:02:58]} 3. c4 {[%clk 0:02:58]}  Nf6 {[%clk 0:02:52]} 4. g3 {[%clk 0:02:58]}  g6 {[%clk 0:02:49]} 5. Bg2 {[%clk 0:02:58]}  Bg7 {[%clk 0:02:50]} 6. d3 {[%clk 0:02:57]}  O-O {[%clk 0:02:50]} 7. Nf3 {[%clk 0:02:56]}  c6 {[%clk 0:02:50]} 8. O-O {[%clk 0:02:55]}  Nbd7 {[%clk 0:02:50]} 9. Nbd2 {[%clk 0:02:52]}  Re8 {[%clk 0:02:50]} 10. Rc1 {[%clk 0:02:44]}  a5 {[%clk 0:02:49]} 11. a3 {[%clk 0:02:43]}  Qb6 {[%clk 0:02:48]} 12. Nb1 {[%clk 0:02:29]}  Nc5 {[%clk 0:02:46]} 13. Nfd2 {[%clk 0:02:24]}  Ne6 {[%clk 0:02:42]} 14. Nc3 {[%clk 0:02:17]}  Bd7 {[%clk 0:02:42]} 15. Nce4 {[%clk 0:01:51]}  Nxe4 {[%clk 0:02:41]} 16. Nxe4 {[%clk 0:01:51]}  Qc7 {[%clk 0:02:36]} 17. e3 {[%clk 0:01:49]}  f5 {[%clk 0:02:34]} 18. Nc3 {[%clk 0:01:42]}  Qb6 {[%clk 0:02:34]} 19. Rb1 {[%clk 0:01:34]}  Nc5 {[%clk 0:02:24]} 20. Ba1 {[%clk 0:01:31]}  Na6 {[%clk 0:02:24]} 21. h4 {[%clk 0:01:21]}  h5 {[%clk 0:02:21]} 22. Ne2 {[%clk 0:01:13]}  Be6 {[%clk 0:02:17]} 23. Bc3 {[%clk 0:01:12]}  d5 {[%clk 0:02:11]} 24. cxd5 {[%clk 0:01:05]}  cxd5 {[%clk 0:02:12]} 25. d4 {[%clk 0:00:46]}  e4 {[%clk 0:02:11]} 26. Qd2 {[%clk 0:00:43]}  Nb8 {[%clk 0:02:10]} 27. Nf4 {[%clk 0:00:39]}  Bf7 {[%clk 0:02:09]} 28. Rfc1 {[%clk 0:00:35]}  Nc6 {[%clk 0:02:07]} 29. Bf1 {[%clk 0:00:31]}  Bf8 {[%clk 0:02:05]} 30. b4 {[%clk 0:00:30]}  axb4 {[%clk 0:02:04]} 31. axb4 {[%clk 0:00:30]}  Ra4 {[%clk 0:02:01]} 32. b5 {[%clk 0:00:29]}  Ne7 {[%clk 0:01:48]} 33. Be2 {[%clk 0:00:28]}  Rea8 {[%clk 0:01:47]} 34. Bd1 {[%clk 0:00:27]}  Ra2 {[%clk 0:01:46]} 35. Rc2 {[%clk 0:00:26]}  Rxc2 {[%clk 0:01:46]} 36. Bxc2 {[%clk 0:00:20]}  Nc8 {[%clk 0:01:46]} 37. Bb3 {[%clk 0:00:19]}  Qxb5 {[%clk 0:01:43]} 38. Qb2 {[%clk 0:00:08]}  Qd7 {[%clk 0:01:40]} 39. Ra1 {[%clk 0:00:05]}  Rxa1+ {[%clk 0:01:38]} 40. Qxa1 {[%clk 0:00:06]}  Nb6 {[%clk 0:01:32]} 41. Qa2 {[%clk 0:00:05]}  Kg7 {[%clk 0:01:29]} 42. Ba5 {[%clk 0:00:05]}  Nc4 {[%clk 0:01:29]} 43. Bxc4 {[%clk 0:00:02]}  dxc4 {[%clk 0:01:30]} 44. Bc3 {[%clk 0:00:01]}  Kg8 {[%clk 0:01:17]} 45. d5 {[%clk 0:00:01]}  Bg7 {[%clk 0:01:17]} 0-1


[Site "https://www.chess.com"]

[Event "Titled Tuesday Blitz February 22 Early 2022"]
[White "Dilmukhametov, Artur"]
[Black "Steil-Antoni, Fiona"]
[WhiteFideId "24179922"]
[BlackFideId "4001249"]
[WhiteElo "2266"]
[BlackElo "2059"]
[Result "1/2-1/2"]
[Round "11"]
[TimeControl "180+1"]
[Date "2022.02.22"]
[WhiteClock "0:01:47"]
[BlackClock "0:00:41"]

1. e4 {[%clk 0:03:00]}  e5 {[%clk 0:03:00]} 2. Nf3 {[%clk 0:03:00]}  Nc6 {[%clk 0:03:01]} 3. Bc4 {[%clk 0:03:01]}  Bc5 {[%clk 0:03:00]} 4. c3 {[%clk 0:03:01]}  d6 {[%clk 0:03:00]} 5. d4 {[%clk 0:03:01]}  exd4 {[%clk 0:02:46]} 6. cxd4 {[%clk 0:03:02]}  Bb4+ {[%clk 0:02:46]} 7. Bd2 {[%clk 0:03:02]}  Bxd2+ {[%clk 0:02:46]} 8. Nbxd2 {[%clk 0:03:03]}  Nge7 {[%clk 0:02:46]} 9. O-O {[%clk 0:02:58]}  O-O {[%clk 0:02:47]} 10. Re1 {[%clk 0:02:49]}  Bg4 {[%clk 0:02:45]} 11. h3 {[%clk 0:02:48]}  Bh5 {[%clk 0:02:45]} 12. Nb3 {[%clk 0:02:41]}  a5 {[%clk 0:02:32]} 13. Be2 {[%clk 0:02:37]}  a4 {[%clk 0:02:29]} 14. Nc1 {[%clk 0:02:37]}  Bxf3 {[%clk 0:02:25]} 15. Bxf3 {[%clk 0:02:37]}  Ng6 {[%clk 0:02:26]} 16. Ne2 {[%clk 0:02:33]}  Qf6 {[%clk 0:02:20]} 17. Rc1 {[%clk 0:02:27]}  Rfe8 {[%clk 0:01:56]} 18. Ng3 {[%clk 0:02:23]}  Nxd4 {[%clk 0:01:46]} 19. Rxc7 {[%clk 0:02:21]}  Nxf3+ {[%clk 0:01:41]} 20. Qxf3 {[%clk 0:02:20]}  Qxf3 {[%clk 0:01:41]} 21. gxf3 {[%clk 0:02:21]}  Ne5 {[%clk 0:01:41]} 22. Kg2 {[%clk 0:02:19]}  b5 {[%clk 0:01:36]} 23. Nf5 {[%clk 0:02:18]}  Re6 {[%clk 0:01:08]} 24. Rec1 {[%clk 0:02:12]}  h6 {[%clk 0:01:07]} 25. f4 {[%clk 0:02:00]}  Nd3 {[%clk 0:00:58]} 26. Rc8+ {[%clk 0:01:57]}  Rxc8 {[%clk 0:00:58]} 27. Rxc8+ {[%clk 0:01:58]}  Kh7 {[%clk 0:00:59]} 28. Kf3 {[%clk 0:01:54]}  Nxb2 {[%clk 0:00:51]} 29. Rc7 {[%clk 0:01:51]}  Kg8 {[%clk 0:00:40]} 30. Rc8+ {[%clk 0:01:47]}  Kh7 {[%clk 0:00:40]} 31. Rc7 {[%clk 0:01:47]}  Kg8 {[%clk 0:00:41]} 32. Rc8+ {[%clk 0:01:47]}  Kh7 {[%clk 0:00:41]} 1/2-1/2


[Site "https://www.chess.com"]